[Event "*** Titled Tuesday Blitz"]
[Site "Chess.com"]
[Date "2019.03.05"]
[Round "1"]
[White "1995Tiger"]
[Black "wenx95"]
[Result "0-1"]
[WhiteElo "1915"]
[BlackElo "2470"]
[TimeControl "180+2"]
[EndTime "13:08:55 PST"]
[Termination "wenx95 won on time"]

1. d4 {[%clk 0:02:58.2]} 1... Nf6 {[%clk 0:03:00.2]} 2. c4 {[%clk 0:02:59]} 2...
Nc6 {[%clk 0:03:01.5]} 3. Nf3 {[%clk 0:02:59.4]} 3... e6 {[%clk 0:03:01.7]} 4.
Nc3 {[%clk 0:03:00.3]} 4... Bb4 {[%clk 0:03:02.9]} 5. Qc2 {[%clk 0:03:01.2]}
5... d6 {[%clk 0:03:03.6]} 6. Bd2 {[%clk 0:02:55.5]} 6... O-O {[%clk 0:02:56.9]}
7. a3 {[%clk 0:02:50]} 7... Bxc3 {[%clk 0:02:55.8]} 8. Bxc3 {[%clk 0:02:51.9]}
8... Qe7 {[%clk 0:02:55.5]} 9. e3 {[%clk 0:02:43]} 9... e5 {[%clk 0:02:56.5]}
10. dxe5 {[%clk 0:02:42.4]} 10... dxe5 {[%clk 0:02:57.2]} 11. Be2 {[%clk
0:02:35.4]} 11... a5 {[%clk 0:02:56.5]} 12. O-O {[%clk 0:02:33.1]} 12... a4
{[%clk 0:02:56.3]} 13. Rad1 {[%clk 0:02:20.7]} 13... Bg4 {[%clk 0:02:48.8]} 14.
h3 {[%clk 0:01:58.3]} 14... Bh5 {[%clk 0:02:48.6]} 15. Ng5 {[%clk 0:00:41.9]}
15... Bg6 {[%clk 0:02:46.8]} 16. Qc1 {[%clk 0:00:29.5]} 16... h6 {[%clk
0:02:45.8]} 17. Nf3 {[%clk 0:00:30.3]} 17... Ne4 {[%clk 0:02:38.4]} 18. Nd2
{[%clk 0:00:29.1]} 18... Nc5 {[%clk 0:02:38.3]} 19. Bb4 {[%clk 0:00:17.2]} 19...
Nxb4 {[%clk 0:02:30.7]} 20. axb4 {[%clk 0:00:19.1]} 20... Nd3 {[%clk 0:02:22.6]}
21. Bxd3 {[%clk 0:00:14.7]} 21... Bxd3 {[%clk 0:02:23.1]} 22. Rfe1 {[%clk
0:00:16.3]} 22... Qxb4 {[%clk 0:02:24.1]} 23. Nf3 {[%clk 0:00:15.6]} 23... e4
{[%clk 0:02:11.8]} 24. Ne5 {[%clk 0:00:16.4]} 24... Rad8 {[%clk 0:02:11.3]} 25.
Nxd3 {[%clk 0:00:16.7]} 25... exd3 {[%clk 0:02:10.2]} 26. Rd2 {[%clk 0:00:17.3]}
26... Rd6 {[%clk 0:02:08.4]} 27. Red1 {[%clk 0:00:18.4]} 27... Rfd8 {[%clk
0:02:09]} 28. c5 {[%clk 0:00:17.7]} 28... Rd5 {[%clk 0:02:07.7]} 29. c6 {[%clk
0:00:18.2]} 29... b5 {[%clk 0:02:06.2]} 30. f3 {[%clk 0:00:17.7]} 30... R5d6
{[%clk 0:02:00.6]} 31. e4 {[%clk 0:00:17.2]} 31... Qc4 {[%clk 0:02:01.3]} 32.
Qb1 {[%clk 0:00:16.2]} 32... Qxc6 {[%clk 0:01:49.8]} 33. Rxd3 {[%clk 0:00:11.2]}
33... Rxd3 {[%clk 0:01:49.6]} 34. Rxd3 {[%clk 0:00:12.1]} 34... Rxd3 {[%clk
0:01:51.2]} 35. Qxd3 {[%clk 0:00:13.6]} 35... Qc1+ {[%clk 0:01:51.8]} 36. Kh2
{[%clk 0:00:14.4]} 36... Qxb2 {[%clk 0:01:51.7]} 37. Qd8+ {[%clk 0:00:14.9]}
37... Kh7 {[%clk 0:01:53]} 38. Qd5 {[%clk 0:00:08.7]} 38... Qb3 {[%clk
0:01:32.2]} 39. Qf5+ {[%clk 0:00:08.7]} 39... g6 {[%clk 0:01:31.9]} 40. Qf4
{[%clk 0:00:08.1]} 40... a3 {[%clk 0:01:31.5]} 41. e5 {[%clk 0:00:09.6]} 41...
a2 {[%clk 0:01:31.8]} 42. Qc1 {[%clk 0:00:10]} 42... Qc4 {[%clk 0:01:19.1]} 43.
Qa1 {[%clk 0:00:10.9]} 43... b4 {[%clk 0:01:18.5]} 44. f4 {[%clk 0:00:12.3]}
44... Qxf4+ {[%clk 0:01:17.6]} 45. Kh1 {[%clk 0:00:13.4]} 45... b3 {[%clk
0:01:17.1]} 46. e6 {[%clk 0:00:09.5]} 46... fxe6 {[%clk 0:01:11.9]} 47. Qd1
{[%clk 0:00:09.3]} 47... Qd6 {[%clk 0:01:05.9]} 48. Qf1 {[%clk 0:00:08.8]} 48...
Kg7 {[%clk 0:01:04.4]} 49. Qa1+ {[%clk 0:00:08.7]} 49... e5 {[%clk 0:01:04.5]}
50. Qf1 {[%clk 0:00:09.7]} 50... b2 {[%clk 0:01:04.3]} 51. Kh2 {[%clk
0:00:09.4]} 51... e4+ {[%clk 0:01:04.1]} 52. g3 {[%clk 0:00:09.8]} 52... Qd2+
{[%clk 0:01:04.7]} 0-1

[Event "*** Titled Tuesday Blitz"]
[Site "Chess.com"]
[Date "2019.03.05"]
[Round "1"]
[White "ENEASZ"]
[Black "SantoBlue"]
[Result "0-1"]
[WhiteElo "2334"]
[BlackElo "2702"]
[TimeControl "180+2"]
[EndTime "13:08:57 PST"]
[Termination "SantoBlue won by resignation"]

1. e4 {[%clk 0:03:00.2]} 1... e5 {[%clk 0:03:00.6]} 2. Nf3 {[%clk 0:03:00.5]}
2... Nc6 {[%clk 0:03:01.9]} 3. Bc4 {[%clk 0:03:01.2]} 3... Bc5 {[%clk
0:03:01.8]} 4. c3 {[%clk 0:03:01.8]} 4... Nf6 {[%clk 0:03:03]} 5. d4 {[%clk
0:03:02.5]} 5... exd4 {[%clk 0:03:03.9]} 6. O-O {[%clk 0:03:03.3]} 6... Nxe4
{[%clk 0:02:52.4]} 7. cxd4 {[%clk 0:03:04.1]} 7... Be7 {[%clk 0:02:50.8]} 8. d5
{[%clk 0:03:04.7]} 8... Nb8 {[%clk 0:02:48.7]} 9. Re1 {[%clk 0:03:00]} 9... Nd6
{[%clk 0:02:44.5]} 10. Bd3 {[%clk 0:03:00.8]} 10... O-O {[%clk 0:02:45.1]} 11.
Nc3 {[%clk 0:02:57.1]} 11... Bf6 {[%clk 0:02:40.1]} 12. Bf4 {[%clk 0:02:52.2]}
12... b6 {[%clk 0:02:23.9]} 13. Qc2 {[%clk 0:02:22.1]} 13... g6 {[%clk
0:02:14.4]} 14. Rac1 {[%clk 0:01:39.7]} 14... Ba6 {[%clk 0:02:00.3]} 15. b4
{[%clk 0:01:23.2]} 15... Bxd3 {[%clk 0:01:59.7]} 16. Qxd3 {[%clk 0:01:25.1]}
16... a5 {[%clk 0:01:56.1]} 17. b5 {[%clk 0:01:24.5]} 17... Bg7 {[%clk
0:01:56.2]} 18. Bxd6 {[%clk 0:01:23.8]} 18... cxd6 {[%clk 0:01:57.3]} 19. a4
{[%clk 0:01:24]} 19... Ra7 {[%clk 0:01:54.9]} 20. Ne4 {[%clk 0:01:23.9]} 20...
Rc7 {[%clk 0:01:55.8]} 21. Qd2 {[%clk 0:01:14]} 21... Rxc1 {[%clk 0:01:54.5]}
22. Rxc1 {[%clk 0:01:15.9]} 22... h6 {[%clk 0:01:54.5]} 23. h3 {[%clk
0:01:14.9]} 23... Kh7 {[%clk 0:01:53.2]} 24. h4 {[%clk 0:01:05.2]} 24... f5
{[%clk 0:01:46.8]} 25. Ng3 {[%clk 0:01:04.4]} 25... Qf6 {[%clk 0:01:44.8]} 26.
Re1 {[%clk 0:01:00.4]} 26... Rc8 {[%clk 0:01:44.2]} 27. Kh2 {[%clk 0:00:50.2]}
27... Qf7 {[%clk 0:01:33.2]} 28. h5 {[%clk 0:00:49]} 28... gxh5 {[%clk
0:01:27.7]} 29. Qd3 {[%clk 0:00:47.5]} 29... Rc5 {[%clk 0:01:21.9]} 30. Rd1
{[%clk 0:00:37.6]} 30... Rc3 {[%clk 0:01:18]} 31. Qxf5+ {[%clk 0:00:37.7]} 31...
Qxf5 {[%clk 0:01:19.1]} 32. Nxf5 {[%clk 0:00:39.6]} 32... Rc4 {[%clk 0:01:14.3]}
33. Re1 {[%clk 0:00:31.1]} 33... Rxa4 {[%clk 0:00:59.9]} 34. Re8 {[%clk
0:00:24.5]} 34... Rb4 {[%clk 0:01:00.1]} 35. Nxd6 {[%clk 0:00:23.4]} 35... a4
{[%clk 0:00:56.7]} 36. Rxb8 {[%clk 0:00:24.2]} 36... a3 {[%clk 0:00:56.6]} 37.
Ra8 {[%clk 0:00:25.2]} 37... Bb2 {[%clk 0:00:58.2]} 38. Ne1 {[%clk 0:00:14.8]}
38... Be5+ {[%clk 0:00:57.8]} 39. g3 {[%clk 0:00:15]} 39... Bxd6 {[%clk
0:00:57.2]} 40. Rxa3 {[%clk 0:00:15]} 40... Rxb5 {[%clk 0:00:57.4]} 41. Re3
{[%clk 0:00:16]} 41... Rxd5 {[%clk 0:00:57.7]} 42. Nf3 {[%clk 0:00:14.4]} 42...
b5 {[%clk 0:00:58.7]} 43. Kg2 {[%clk 0:00:14.2]} 43... b4 {[%clk 0:00:59.9]} 44.
Re4 {[%clk 0:00:15.3]} 44... b3 {[%clk 0:01:00.6]} 45. Re3 {[%clk 0:00:14.4]}
45... Rb5 {[%clk 0:01:01.5]} 46. Rd3 {[%clk 0:00:15.8]} 46... b2 {[%clk
0:01:02.7]} 47. Nd2 {[%clk 0:00:17.2]} 47... Rb6 {[%clk 0:01:01.4]} 48. Kf3
{[%clk 0:00:14.6]} 48... Kg6 {[%clk 0:01:02.6]} 49. Ke4 {[%clk 0:00:16.2]} 49...
Bf8 {[%clk 0:01:02.2]} 50. f4 {[%clk 0:00:12.2]} 50... Rb4+ {[%clk 0:01:01.9]}
51. Ke3 {[%clk 0:00:12.6]} 51... Bc5+ {[%clk 0:01:02.6]} 52. Ke2 {[%clk
0:00:13.1]} 52... d6 {[%clk 0:01:03.1]} 53. Kd1 {[%clk 0:00:13.1]} 53... b1=Q+
{[%clk 0:01:04.2]} 54. Nxb1 {[%clk 0:00:14.4]} 54... Rxb1+ {[%clk 0:01:06]} 55.
Kc2 {[%clk 0:00:16.3]} 55... Rg1 {[%clk 0:01:07.5]} 56. Kc3 {[%clk 0:00:17.7]}
56... h4 {[%clk 0:01:08.3]} 57. gxh4 {[%clk 0:00:18.1]} 57... Kf5 {[%clk
0:01:10]} 58. Kc4 {[%clk 0:00:19]} 58... Kxf4 {[%clk 0:01:10.9]} 0-1

[Event "*** Titled Tuesday Blitz"]
[Site "Chess.com"]
[Date "2019.03.05"]
[Round "1"]
[White "Keaton87"]
[Black "Karina_Oparina"]
[Result "1-0"]
[WhiteElo "2554"]
[BlackElo "2179"]
[TimeControl "180+2"]
[EndTime "13:09:02 PST"]
[Termination "Keaton87 won on time"]

1. d4 {[%clk 0:03:01.5]} 1... Nf6 {[%clk 0:02:59.4]} 2. Nc3 {[%clk 0:03:02.1]}
2... d5 {[%clk 0:02:58.9]} 3. Bf4 {[%clk 0:03:02.8]} 3... c6 {[%clk 0:02:57.6]}
4. Qd2 {[%clk 0:03:01.3]} 4... Bf5 {[%clk 0:02:56.7]} 5. f3 {[%clk 0:03:02.1]}
5... h6 {[%clk 0:02:40.9]} 6. g4 {[%clk 0:02:50.2]} 6... Bh7 {[%clk 0:02:38.4]}
7. e3 {[%clk 0:02:49.8]} 7... e6 {[%clk 0:02:37.5]} 8. Bd3 {[%clk 0:02:50.2]}
8... Bd6 {[%clk 0:02:31.9]} 9. Nge2 {[%clk 0:02:50.4]} 9... Bxf4 {[%clk
0:02:25.4]} 10. Nxf4 {[%clk 0:02:51.1]} 10... Nbd7 {[%clk 0:02:26.1]} 11. O-O-O
{[%clk 0:02:49]} 11... Qc7 {[%clk 0:02:24]} 12. Bxh7 {[%clk 0:02:46.9]} 12...
Nxh7 {[%clk 0:02:19.8]} 13. h4 {[%clk 0:02:45.8]} 13... O-O-O {[%clk 0:02:19]}
14. Kb1 {[%clk 0:02:45.4]} 14... e5 {[%clk 0:02:15]} 15. Nfe2 {[%clk 0:02:35.4]}
15... Nhf8 {[%clk 0:01:49.5]} 16. f4 {[%clk 0:02:35.7]} 16... e4 {[%clk
0:01:49]} 17. f5 {[%clk 0:02:34.3]} 17... h5 {[%clk 0:01:42.6]} 18. g5 {[%clk
0:02:34]} 18... g6 {[%clk 0:01:42.6]} 19. f6 {[%clk 0:02:27.4]} 19... Ne6 {[%clk
0:01:42.4]} 20. Rdf1 {[%clk 0:02:26.8]} 20... b5 {[%clk 0:01:32]} 21. Nf4 {[%clk
0:02:27]} 21... Nxf4 {[%clk 0:01:31.5]} 22. Rxf4 {[%clk 0:02:27.8]} 22... Nf8
{[%clk 0:01:30.7]} 23. Ne2 {[%clk 0:02:28.4]} 23... Ne6 {[%clk 0:01:31.2]} 24.
Rff1 {[%clk 0:02:29.3]} 24... a5 {[%clk 0:01:26.7]} 25. Nf4 {[%clk 0:02:27.3]}
25... Rhe8 {[%clk 0:01:21]} 26. Nxe6 {[%clk 0:02:26.9]} 26... Rxe6 {[%clk
0:01:21]} 27. Qh2 {[%clk 0:02:23.8]} 27... Kb7 {[%clk 0:01:13.2]} 28. Qxc7+
{[%clk 0:02:24.1]} 28... Kxc7 {[%clk 0:01:14.3]} 29. Kc1 {[%clk 0:02:24.3]}
29... a4 {[%clk 0:01:13.8]} 30. a3 {[%clk 0:02:24.7]} 30... Kd6 {[%clk
0:01:12.7]} 31. b3 {[%clk 0:02:19.1]} 31... Ra8 {[%clk 0:01:07.8]} 32. Kb2
{[%clk 0:02:20.1]} 32... Ree8 {[%clk 0:01:06.8]} 33. Ra1 {[%clk 0:02:17.1]}
33... Ra6 {[%clk 0:01:07.3]} 34. Ra2 {[%clk 0:02:17.8]} 34... Rea8 {[%clk
0:01:07.6]} 35. Rha1 {[%clk 0:02:19.2]} 35... Ke6 {[%clk 0:00:56.3]} 36. Kc3
{[%clk 0:02:20.4]} 36... Kf5 {[%clk 0:00:46]} 37. Rg1 {[%clk 0:02:14.7]} 37...
Ke6 {[%clk 0:00:45.6]} 38. Kb4 {[%clk 0:02:15.7]} 38... Kd6 {[%clk 0:00:45.7]}
39. Rb1 {[%clk 0:02:04.7]} 39... R6a7 {[%clk 0:00:45.7]} 40. Rc1 {[%clk
0:02:01.5]} 40... Ra6 {[%clk 0:00:45.7]} 41. Raa1 {[%clk 0:02:00.6]} 41... R6a7
{[%clk 0:00:46.1]} 42. Kc3 {[%clk 0:01:55.9]} 42... axb3 {[%clk 0:00:40.7]} 43.
Kxb3 {[%clk 0:01:57]} 43... Ra4 {[%clk 0:00:40.5]} 44. Ra2 {[%clk 0:01:48]}
44... b4 {[%clk 0:00:22.4]} 45. Rca1 {[%clk 0:01:45.6]} 45... bxa3 {[%clk
0:00:22.1]} 46. Rxa3 {[%clk 0:01:46.9]} 46... Rxa3+ {[%clk 0:00:20.5]} 47. Rxa3
{[%clk 0:01:48.8]} 47... Rb8+ {[%clk 0:00:21.2]} 48. Kc3 {[%clk 0:01:49.3]}
48... Rb1 {[%clk 0:00:18.8]} 49. Ra7 {[%clk 0:01:49.8]} 49... Rh1 {[%clk
0:00:15.6]} 50. Rxf7 {[%clk 0:01:50.6]} 50... Rxh4 {[%clk 0:00:15.8]} 51. Rg7
{[%clk 0:01:51.9]} 51... Rg4 {[%clk 0:00:15.6]} 52. Rxg6 {[%clk 0:01:52.9]}
52... h4 {[%clk 0:00:16.6]} 53. Rg8 {[%clk 0:01:49.3]} 53... Ke6 {[%clk
0:00:14.6]} 54. Kb4 {[%clk 0:01:35.1]} 54... h3 {[%clk 0:00:12.1]} 55. Rh8
{[%clk 0:01:36.2]} 55... Rxg5 {[%clk 0:00:11.4]} 56. Rxh3 {[%clk 0:01:37.2]}
56... Kxf6 {[%clk 0:00:10.1]} 57. Kc5 {[%clk 0:01:34.7]} 57... Kf5 {[%clk
0:00:06.8]} 58. Rh4 {[%clk 0:01:28.1]} 58... Rg2 {[%clk 0:00:04.9]} 59. Kxc6
{[%clk 0:01:27.6]} 59... Rxc2+ {[%clk 0:00:04.9]} 60. Kxd5 {[%clk 0:01:29]}
60... Rc3 {[%clk 0:00:03]} 61. Rf4+ {[%clk 0:01:28.6]} 61... Kg5 {[%clk
0:00:02.3]} 62. Kxe4 {[%clk 0:01:29.8]} 1-0

[Event "*** Titled Tuesday Blitz"]
[Site "Chess.com"]
[Date "2019.03.05"]
[Round "1"]
[White "ChristopherYoo"]
[Black "HanSchut"]
[Result "1/2-1/2"]
[WhiteElo "2659"]
[BlackElo "2314"]
[TimeControl "180+2"]
[EndTime "13:09:05 PST"]
[Termination "Game drawn by repetition"]

1. e3 {[%clk 0:03:01.9]} 1... c5 {[%clk 0:02:59.3]} 2. Nf3 {[%clk 0:02:49.4]}
2... d5 {[%clk 0:02:36.1]} 3. d4 {[%clk 0:02:47.7]} 3... cxd4 {[%clk 0:02:31.4]}
4. exd4 {[%clk 0:02:47.1]} 4... Nc6 {[%clk 0:02:32.9]} 5. Ne5 {[%clk 0:02:46]}
5... Qb6 {[%clk 0:01:56.1]} 6. c3 {[%clk 0:02:29.6]} 6... Nxe5 {[%clk
0:01:55.4]} 7. dxe5 {[%clk 0:02:08.1]} 7... e6 {[%clk 0:01:56.3]} 8. Bd3 {[%clk
0:02:03.7]} 8... Bd7 {[%clk 0:01:57.3]} 9. O-O {[%clk 0:02:01.9]} 9... Bb5
{[%clk 0:01:55.8]} 10. Be3 {[%clk 0:01:55.3]} 10... Qa6 {[%clk 0:01:43.2]} 11.
Bb6 {[%clk 0:01:35.6]} 11... Qxb6 {[%clk 0:01:34.2]} 12. Bxb5+ {[%clk
0:01:32.3]} 12... Qxb5 {[%clk 0:01:34.9]} 13. b4 {[%clk 0:01:33.2]} 13... Ne7
{[%clk 0:01:26.4]} 14. a4 {[%clk 0:01:33.7]} 14... Qd7 {[%clk 0:01:27.1]} 15.
Na3 {[%clk 0:01:33.6]} 15... Ng6 {[%clk 0:01:26.6]} 16. f4 {[%clk 0:01:33.3]}
16... a5 {[%clk 0:01:26.3]} 17. b5 {[%clk 0:01:27.7]} 17... Bxa3 {[%clk
0:01:21.4]} 18. Rxa3 {[%clk 0:01:29.6]} 18... O-O {[%clk 0:01:16.7]} 19. Qd3
{[%clk 0:01:26.8]} 19... Rac8 {[%clk 0:01:11.7]} 20. Ra2 {[%clk 0:01:15.4]}
20... Rc4 {[%clk 0:01:08.9]} 21. g3 {[%clk 0:01:11.5]} 21... Rfc8 {[%clk
0:01:03.2]} 22. Rf3 {[%clk 0:01:12.2]} 22... d4 {[%clk 0:00:49.2]} 23. Rd2
{[%clk 0:01:10.2]} 23... Qd5 {[%clk 0:00:47.9]} 24. cxd4 {[%clk 0:01:08.5]}
24... Rxd4 {[%clk 0:00:45.2]} 25. Qxd4 {[%clk 0:00:56.3]} 25... Qxf3 {[%clk
0:00:46.1]} 26. Qb2 {[%clk 0:00:46.1]} 26... Ne7 {[%clk 0:00:29]} 27. Rf2 {[%clk
0:00:30.1]} 27... Qe3 {[%clk 0:00:29.2]} 28. Kg2 {[%clk 0:00:25]} 28... Nd5
{[%clk 0:00:26.1]} 29. Qb1 {[%clk 0:00:25.6]} 29... Rc1 {[%clk 0:00:21.3]} 30.
Qb2 {[%clk 0:00:18.1]} 30... Qe4+ {[%clk 0:00:21.3]} 31. Kh3 {[%clk 0:00:18.9]}
31... Rc8 {[%clk 0:00:19.7]} 32. Qd2 {[%clk 0:00:18]} 32... Ne3 {[%clk
0:00:19.2]} 33. g4 {[%clk 0:00:17.5]} 33... h5 {[%clk 0:00:19.2]} 34. Qd7 {[%clk
0:00:08.2]} 34... hxg4+ {[%clk 0:00:19.1]} 35. Kg3 {[%clk 0:00:09.1]} 35... Nf5+
{[%clk 0:00:17.6]} 36. Kxg4 {[%clk 0:00:09.4]} 36... Ne3+ {[%clk 0:00:18.7]} 37.
Kg3 {[%clk 0:00:09.9]} 37... Rc3 {[%clk 0:00:17.2]} 38. Qd8+ {[%clk 0:00:10.2]}
38... Kh7 {[%clk 0:00:15.7]} 39. Qh4+ {[%clk 0:00:11.2]} 39... Kg8 {[%clk
0:00:17]} 40. Qd8+ {[%clk 0:00:12.2]} 40... Kh7 {[%clk 0:00:18.2]} 41. Qh4+
{[%clk 0:00:13.1]} 41... Kg8 {[%clk 0:00:19.6]} 42. Qd8+ {[%clk 0:00:14.1]}
42... Kh7 {[%clk 0:00:17.4]} 43. Qh4+ {[%clk 0:00:14.3]} 43... Kg8 {[%clk
0:00:16]} 44. Qd8+ {[%clk 0:00:15]} 1/2-1/2

[Event "*** Titled Tuesday Blitz"]
[Site "Chess.com"]
[Date "2019.03.05"]
[Round "1"]
[White "vovachesss"]
[Black "saraswathii"]
[Result "1-0"]
[WhiteElo "2601"]
[BlackElo "2240"]
[TimeControl "180+2"]
[EndTime "13:09:07 PST"]
[Termination "vovachesss won by resignation"]

1. e4 {[%clk 0:02:58.1]} 1... c5 {[%clk 0:03:00.3]} 2. d4 {[%clk 0:02:58.8]}
2... cxd4 {[%clk 0:03:00.1]} 3. c3 {[%clk 0:03:00.5]} 3... dxc3 {[%clk 0:03:00]}
4. Nxc3 {[%clk 0:03:02.4]} 4... e6 {[%clk 0:03:00.3]} 5. Nf3 {[%clk 0:03:03.9]}
5... Nc6 {[%clk 0:03:00.5]} 6. Bc4 {[%clk 0:03:04.7]} 6... Bb4 {[%clk
0:03:01.3]} 7. O-O {[%clk 0:03:05.8]} 7... Nf6 {[%clk 0:03:01.5]} 8. Qe2 {[%clk
0:03:05.9]} 8... Qc7 {[%clk 0:02:59.2]} 9. Nb5 {[%clk 0:03:03.3]} 9... Qb8
{[%clk 0:03:00.1]} 10. e5 {[%clk 0:03:03]} 10... Ng4 {[%clk 0:02:58.9]} 11. Bf4
{[%clk 0:03:02.5]} 11... f6 {[%clk 0:02:53.3]} 12. Nd6+ {[%clk 0:02:37.5]} 12...
Kf8 {[%clk 0:02:43.9]} 13. exf6 {[%clk 0:02:34.9]} 13... Bxd6 {[%clk 0:02:39.5]}
14. fxg7+ {[%clk 0:02:33.5]} 14... Kxg7 {[%clk 0:02:38.6]} 15. Bg3 {[%clk
0:02:19.1]} 15... Bxg3 {[%clk 0:02:35.4]} 16. fxg3 {[%clk 0:02:21]} 16... d5
{[%clk 0:02:29]} 17. Ng5 {[%clk 0:02:16.8]} 17... Nge5 {[%clk 0:02:16.2]} 18.
Qh5 {[%clk 0:02:02.4]} 18... Qc7 {[%clk 0:01:42.7]} 19. Bd3 {[%clk 0:00:51.6]}
19... h6 {[%clk 0:01:25.4]} 20. Rf4 {[%clk 0:00:42]} 20... Qe7 {[%clk
0:01:15.1]} 21. Nf7 {[%clk 0:00:17]} 21... Nxf7 {[%clk 0:01:07.2]} 22. Rg4+
{[%clk 0:00:17.9]} 22... Kf8 {[%clk 0:00:59.5]} 23. Rf1 {[%clk 0:00:18.4]} 23...
e5 {[%clk 0:00:58]} 24. Rg6 {[%clk 0:00:15]} 24... Be6 {[%clk 0:00:55]} 25. Bf5
{[%clk 0:00:06.8]} 25... Bxf5 {[%clk 0:00:26]} 26. Qxf5 {[%clk 0:00:08.7]} 26...
Nd8 {[%clk 0:00:25.5]} 27. Rg4 {[%clk 0:00:07.1]} 27... Rg8 {[%clk 0:00:24.6]}
28. Rh4 {[%clk 0:00:04]} 28... Qg5 {[%clk 0:00:21.4]} 29. Qd7 {[%clk 0:00:03.4]}
29... Kg7 {[%clk 0:00:21.9]} 30. Rg4 {[%clk 0:00:03.9]} 30... Rf8 {[%clk
0:00:19.1]} 31. Rxg5+ {[%clk 0:00:05.3]} 31... hxg5 {[%clk 0:00:21]} 32. Qxd5
{[%clk 0:00:06.3]} 32... Nc6 {[%clk 0:00:20]} 33. h4 {[%clk 0:00:07.1]} 33...
Rad8 {[%clk 0:00:20.6]} 34. Qe6 {[%clk 0:00:08.2]} 34... Nd4 {[%clk 0:00:20.8]}
35. Qg4 {[%clk 0:00:08.3]} 35... Rd6 {[%clk 0:00:21.2]} 36. h5 {[%clk
0:00:06.4]} 36... Ne6 {[%clk 0:00:19.7]} 37. Qf5 {[%clk 0:00:05.8]} 37... Nd4
{[%clk 0:00:20.4]} 38. Qe4 {[%clk 0:00:05.8]} 38... Re6 {[%clk 0:00:19.8]} 39.
Rc1 {[%clk 0:00:06.5]} 39... Nd6 {[%clk 0:00:19.9]} 40. Rc7+ {[%clk 0:00:07.5]}
40... Rf7 {[%clk 0:00:19.1]} 41. h6+ {[%clk 0:00:09]} 41... Rxh6 {[%clk
0:00:19.6]} 42. Qxe5+ {[%clk 0:00:10]} 42... Rf6 {[%clk 0:00:21]} 43. Rxf7+
{[%clk 0:00:10.3]} 43... Nxf7 {[%clk 0:00:21.6]} 44. Qxd4 {[%clk 0:00:12.2]}
44... Kg6 {[%clk 0:00:23.3]} 45. Qxa7 {[%clk 0:00:13.4]} 45... Nd6 {[%clk
0:00:25.1]} 46. Qd4 {[%clk 0:00:14.7]} 46... Nf5 {[%clk 0:00:27]} 47. Qe4 {[%clk
0:00:15.6]} 47... Kg7 {[%clk 0:00:27.9]} 48. g4 {[%clk 0:00:17]} 48... Ng3
{[%clk 0:00:29.3]} 49. Qe7+ {[%clk 0:00:18.4]} 49... Kg6 {[%clk 0:00:30]} 50.
Qe8+ {[%clk 0:00:19.5]} 50... Kg7 {[%clk 0:00:30.6]} 51. Qd7+ {[%clk 0:00:20.7]}
51... Kg6 {[%clk 0:00:31.7]} 52. Qd3+ {[%clk 0:00:21.3]} 1-0

[Event "*** Titled Tuesday Blitz"]
[Site "Chess.com"]
[Date "2019.03.05"]
[Round "1"]
[White "KRASAVCHIK2002"]
[Black "Ali_rastbod"]
[Result "1-0"]
[WhiteElo "2321"]
[BlackElo "2647"]
[TimeControl "180+2"]
[EndTime "13:09:09 PST"]
[Termination "KRASAVCHIK2002 won by resignation"]

1. Nf3 {[%clk 0:03:00.6]} 1... d5 {[%clk 0:03:00.7]} 2. e3 {[%clk 0:02:59.6]}
2... Nf6 {[%clk 0:03:00.8]} 3. c4 {[%clk 0:02:59.6]} 3... g6 {[%clk 0:03:00.9]}
4. d4 {[%clk 0:02:58.1]} 4... Bg7 {[%clk 0:03:01.7]} 5. cxd5 {[%clk 0:02:59.5]}
5... Nxd5 {[%clk 0:03:02]} 6. Nc3 {[%clk 0:03:01.4]} 6... O-O {[%clk 0:03:02.6]}
7. Bc4 {[%clk 0:03:01.3]} 7... Nb6 {[%clk 0:03:03.3]} 8. Bb3 {[%clk 0:03:00.4]}
8... c5 {[%clk 0:03:04.4]} 9. dxc5 {[%clk 0:02:56]} 9... Qxd1+ {[%clk
0:03:01.2]} 10. Bxd1 {[%clk 0:02:55.5]} 10... N6d7 {[%clk 0:03:01.2]} 11. Nd5
{[%clk 0:02:44]} 11... Nc6 {[%clk 0:02:59.8]} 12. Ba4 {[%clk 0:02:45]} 12...
Nxc5 {[%clk 0:02:27.8]} 13. Bb5 {[%clk 0:02:23.7]} 13... e6 {[%clk 0:01:30.9]}
14. Nc3 {[%clk 0:02:14.2]} 14... Nb4 {[%clk 0:01:28.9]} 15. O-O {[%clk
0:02:13.9]} 15... a6 {[%clk 0:01:29.3]} 16. Be2 {[%clk 0:02:13.6]} 16... b5
{[%clk 0:01:29.9]} 17. a3 {[%clk 0:02:14.6]} 17... Nbd3 {[%clk 0:01:24]} 18. Rd1
{[%clk 0:02:12.9]} 18... Rd8 {[%clk 0:01:17.3]} 19. Ne1 {[%clk 0:01:45.8]} 19...
Bxc3 {[%clk 0:00:49.4]} 20. bxc3 {[%clk 0:01:42.9]} 20... Nb3 {[%clk 0:00:49]}
21. Rb1 {[%clk 0:01:06.7]} 21... Nbxc1 {[%clk 0:00:41.8]} 22. Rbxc1 {[%clk
0:01:07.3]} 22... Nxc1 {[%clk 0:00:41.5]} 23. Rxd8+ {[%clk 0:01:08.3]} 23... Kg7
{[%clk 0:00:43.1]} 24. Bf3 {[%clk 0:01:09.8]} 24... Rb8 {[%clk 0:00:42.1]} 25.
Nc2 {[%clk 0:01:09.9]} 25... e5 {[%clk 0:00:40.9]} 26. Nb4 {[%clk 0:01:07.8]}
26... e4 {[%clk 0:00:37.2]} 27. Bxe4 {[%clk 0:01:06.1]} 27... Ne2+ {[%clk
0:00:38.7]} 28. Kf1 {[%clk 0:01:02.5]} 28... Nxc3 {[%clk 0:00:40.6]} 29. Bf3
{[%clk 0:01:03.8]} 29... a5 {[%clk 0:00:35.2]} 30. Nc6 {[%clk 0:01:00.5]} 30...
Rb6 {[%clk 0:00:21]} 31. Rxc8 {[%clk 0:01:00.7]} 31... b4 {[%clk 0:00:22.4]} 32.
axb4 {[%clk 0:01:02.1]} 32... axb4 {[%clk 0:00:24.3]} 33. Nxb4 {[%clk
0:01:03.3]} 33... Na4 {[%clk 0:00:20.7]} 34. Nc2 {[%clk 0:00:59.8]} 34... Rb1+
{[%clk 0:00:21.8]} 35. Ke2 {[%clk 0:01:00.7]} 35... Rb2 {[%clk 0:00:22.5]} 36.
Kd2 {[%clk 0:00:59.4]} 36... Nb6 {[%clk 0:00:22.1]} 37. Rc7 {[%clk 0:00:58.8]}
37... Rb5 {[%clk 0:00:19.7]} 38. g3 {[%clk 0:00:53.4]} 38... Ra5 {[%clk
0:00:19.7]} 39. Nd4 {[%clk 0:00:52]} 39... Ra2+ {[%clk 0:00:20.3]} 40. Ke1
{[%clk 0:00:53.1]} 40... Rb2 {[%clk 0:00:21.3]} 41. Kf1 {[%clk 0:00:51.3]} 41...
Kf6 {[%clk 0:00:19.3]} 42. Rb7 {[%clk 0:00:49.7]} 42... Rb1+ {[%clk 0:00:19.3]}
43. Kg2 {[%clk 0:00:50.5]} 43... Rb2 {[%clk 0:00:21.2]} 44. Nc6 {[%clk
0:00:44.6]} 44... h5 {[%clk 0:00:22.4]} 45. Na7 {[%clk 0:00:44.4]} 45... Nc4
{[%clk 0:00:23]} 46. Rxb2 {[%clk 0:00:44.5]} 46... Nxb2 {[%clk 0:00:24.9]} 47.
Nb5 {[%clk 0:00:45.3]} 47... Nd3 {[%clk 0:00:25.5]} 48. Nd4 {[%clk 0:00:44.9]}
48... Ke5 {[%clk 0:00:25.5]} 49. Be2 {[%clk 0:00:45.4]} 49... Nc5 {[%clk
0:00:24]} 50. Nf3+ {[%clk 0:00:46.4]} 50... Kf6 {[%clk 0:00:24.6]} 51. Bc4
{[%clk 0:00:47.1]} 51... Ne4 {[%clk 0:00:25.7]} 52. Bd5 {[%clk 0:00:47]} 52...
Nd6 {[%clk 0:00:27.6]} 53. e4 {[%clk 0:00:48.3]} 1-0